bitfinex/quotes_SOLUSD_20241028
["timestamp","ask_amount","ask_price","bid_price","bid_amount"]
[1730145636951,27.78607244,176.23,176.21,5.9212035]
[1730145637153,27.78607244,176.23,176.16,27.78607244]
[1730145637348,27.78607244,176.24,176.17,27.78607244]
[1730145637657,27.78607244,176.22,176.15,27.78607244]
[1730145638059,27.78607244,176.23,176.16,27.78607244]
[1730145638465,27.78607244,176.22,176.16,27.78607244]
[1730145639470,27.78607244,176.23,176.16,27.78607244]
[1730145640366,27.78607244,176.24,176.17,27.78607244]
[1730145640981,27.78607244,176.25,176.18,27.78607244]
[1730145641160,27.78607244,176.28,176.22,27.78607244]
[1730145641477,27.78607244,176.29,176.24,27.78607244]
[1730145641685,27.78607244,176.31,176.24,27.78607244]
[1730145642666,33.45787244,176.31,176.24,27.78607244]
[1730145643171,33.45787244,176.31,176.25,27.78607244]
[1730145643352,33.45787244,176.31,176.24,27.78607244]
[1730145643561,33.45787244,176.31,176.23,27.78607244]
[1730145643562,27.78607244,176.3,176.23,27.78607244]
[1730145644579,27.78607244,176.31,176.24,27.78607244]
[1730145644784,27.78607244,176.3,176.24,27.78607244]
[1730145645889,33.45827244,176.3,176.23,27.78607244]
[1730145648497,27.78607244,176.29,176.23,27.78607244]
[1730145649775,33.45857244,176.29,176.23,27.78607244]
[1730145650266,33.50597244,176.29,176.23,27.78607244]
[1730145651288,0.0474,176.29,176.23,43.776884]
[1730145651472,0.0474,176.29,176.28,27.78607244]
[1730145653362,0.0474,176.29,176.28,71.56295644]
[1730145655975,0.0474,176.29,176.28,27.78607244]
[1730145656494,0.0474,176.29,176.27,27.78607244]
[1730145656875,0.0474,176.29,176.26,27.78607244]
[1730145657399,0.0474,176.29,176.27,27.78607244]
[1730145658279,0.0474,176.29,176.28,27.78607244]
[1730145659574,0.0474,176.29,176.27,27.78607244]
[1730145660472,0.0474,176.29,176.28,27.78607244]
[1730145662280,0.0474,176.29,176.25,27.78607244]
[1730145663378,0.0474,176.29,176.26,27.78607244]
[1730145663583,0.0474,176.29,176.22,27.78607244]
[1730145663584,0.0474,176.29,176.28,27.78607244]
[1730145665010,0.0474,176.29,176.28,71.56295644]
[1730145665199,0.0474,176.29,176.28,99.34902888]
[1730145665513,22.0662,176.38,176.29,23.776884]
[1730145665682,16.3966,176.38,176.34,27.78607244]
[1730145666112,16.3966,176.38,176.35,27.78607244]
[1730145667808,16.3966,176.38,176.34,27.78607244]
[1730145668310,5.666,176.49,176.38,20.0]
[1730145668515,5.6647,176.53,176.47,27.78607244]
[1730145668683,33.45077244,176.53,176.46,27.78607244]
[1730145669010,27.78607244,176.5,176.43,27.78607244]
[1730145669187,5.6647,176.53,176.39,23.776884]
[1730145669188,27.78607244,176.49,176.42,27.78607244]
[1730145669390,27.78607244,176.52,176.45,27.78607244]
[1730145669612,33.45077244,176.53,176.46,27.78607244]
[1730145669913,27.78607244,176.52,176.46,27.78607244]
[1730145670413,33.45077244,176.53,176.46,27.78607244]
[1730145670624,27.78607244,176.52,176.45,27.78607244]
[1730145670784,27.78607244,176.49,176.43,27.78607244]
[1730145671297,27.78607244,176.49,176.42,27.78607244]
[1730145671885,27.78607244,176.49,176.43,27.78607244]
[1730145672092,27.78607244,176.51,176.45,27.78607244]
[1730145672312,27.78607244,176.5,176.44,27.78607244]
[1730145672806,27.78607244,176.52,176.45,27.78607244]
[1730145673020,27.78607244,176.51,176.45,27.78607244]
[1730145673492,27.78607244,176.5,176.45,27.78607244]
[1730145674006,33.45177244,176.5,176.44,27.78607244]
[1730145676341,5.6657,176.5,176.45,27.78607244]
[1730145676638,5.6647,176.53,176.47,27.78607244]
[1730145677224,33.45077244,176.53,176.46,27.78607244]
[1730145678047,33.45077244,176.53,176.47,27.78607244]
[1730145678542,27.78607244,176.49,176.43,27.78607244]
[1730145678753,27.78607244,176.5,176.44,27.78607244]
[1730145679450,27.78607244,176.51,176.45,27.78607244]
[1730145679623,5.6655,176.51,176.46,27.78607244]
[1730145680159,5.6651,176.52,176.46,27.78607244]
[1730145680456,5.6651,176.52,176.47,27.78607244]
[1730145680953,33.45117244,176.52,176.46,27.78607244]
[1730145681256,27.78607244,176.51,176.45,27.78607244]
[1730145682338,33.45157244,176.51,176.45,27.78607244]
[1730145682739,5.6655,176.51,176.46,27.78607244]
[1730145683443,27.78607244,176.52,176.46,27.78607244]
[1730145684361,33.45107244,176.52,176.46,27.78607244]
[1730145684720,89.8277,176.52,176.42,27.78607244]
[1730145684920,27.78607244,176.5,176.44,27.78607244]
[1730145685710,27.78607244,176.51,176.45,27.78607244]
[1730145685911,5.6657,176.5,176.45,27.78607244]
[1730145686428,33.45077244,176.53,176.48,27.78607244]
[1730145686940,5.6647,176.53,176.48,27.78607244]
[1730145687441,33.45077244,176.53,176.48,27.78607244]
[1730145688214,5.6647,176.53,176.48,27.78607244]
[1730145689136,14.1556,176.61,176.52,27.78607244]
[1730145689432,27.78607244,176.56,176.5,27.78607244]
[1730145689613,27.78607244,176.55,176.5,27.78607244]
[1730145689811,15.0654,176.57,176.48,27.78607244]
[1730145689812,27.78607244,176.54,176.48,27.78607244]
[1730145690039,15.0654,176.57,176.48,27.78607244]
[1730145690333,15.0654,176.57,176.49,27.78607244]
[1730145690535,17.34918243,176.53,176.48,17.34918243]
[1730145690718,17.34918243,176.53,176.43,6.1506]
[1730145690918,17.34918243,176.53,176.48,17.34918243]
[1730145691342,17.34918243,176.54,176.48,17.34918243]
[1730145691827,17.34918243,176.55,176.49,17.34918243]
[1730145692135,5.6637,176.56,176.48,17.34918243]
[1730145692136,37.34918243,176.54,176.48,17.34918243]
[1730145692844,5.6647,176.53,176.48,17.34918243]
[1730145693039,5.6647,176.53,176.49,17.34918243]
[1730145694112,5.6642,176.55,176.51,17.34918243]
[1730145694315,5.6638,176.56,176.52,17.34918243]
[1730145694944,15.0654,176.57,176.54,17.34918243]
[1730145695242,20.7289,176.57,176.52,17.34918243]
[1730145695932,20.7289,176.57,176.53,17.34918243]
[1730145696132,17.34918243,176.6,176.54,17.34918243]
[1730145696340,20.0,176.59,176.54,17.34918243]
[1730145696721,23.01168243,176.6,176.54,17.34918243]
[1730145697420,5.6625,176.6,176.56,17.34918243]
[1730145697621,5.6625,176.6,176.57,17.34918243]
[1730145698022,5.6625,176.6,176.56,17.34918243]
[1730145698538,23.01128243,176.61,176.55,17.34918243]
[1730145699015,23.01128243,176.61,176.56,17.34918243]
[1730145700327,5.6621,176.61,176.57,17.34918243]
[1730145700531,5.6621,176.61,176.56,17.34918243]
[1730145701950,17.34918243,176.6,176.54,17.34918243]
[1730145703026,5.6628,176.59,176.54,17.34918243]
[1730145703222,23.01198243,176.59,176.53,17.34918243]
[1730145703427,5.6628,176.59,176.55,17.34918243]
[1730145704325,17.34918243,176.59,176.53,17.34918243]
[1730145705348,23.01168243,176.6,176.54,17.34918243]
[1730145705733,5.6625,176.6,176.55,17.34918243]
[1730145706332,5.6625,176.6,176.57,17.34918243]
[1730145706546,5.6625,176.6,176.56,17.34918243]
[1730145707124,17.34918243,176.59,176.53,17.34918243]
[1730145707439,17.34918243,176.59,176.52,17.34918243]
[1730145707949,17.34918243,176.59,176.53,17.34918243]
[1730145708344,5.6631,176.58,176.53,17.34918243]
[1730145708543,5.6631,176.58,176.51,17.34918243]
[1730145708544,17.34918243,176.57,176.51,17.34918243]
[1730145709635,17.34918243,176.55,176.49,17.34918243]
[1730145710439,19.8209,176.58,176.5,17.34918243]
[1730145710440,17.34918243,176.56,176.5,17.34918243]
[1730145711660,5.6634,176.57,176.54,17.34918243]
[1730145711857,5.6628,176.59,176.54,17.34918243]
[1730145712065,23.01198243,176.59,176.53,17.34918243]
[1730145712460,17.34918243,176.57,176.48,20.0]
[1730145712630,17.34918243,176.57,176.51,17.34918243]
[1730145712830,23.01288243,176.56,176.5,17.34918243]
[1730145714046,5.6637,176.56,176.51,17.34918243]
[1730145715759,23.01288243,176.56,176.51,17.34918243]
[1730145716061,23.01288243,176.56,176.5,17.34918243]
[1730145716239,17.34918243,176.55,176.49,17.34918243]
[1730145716444,17.34918243,176.54,176.48,17.34918243]
[1730145717136,5.6647,176.53,176.48,17.34918243]
[1730145717335,5.6647,176.53,176.49,17.34918243]
[1730145718335,5.6647,176.53,176.48,17.34918243]
[1730145718537,23.01388243,176.53,176.47,17.34918243]
[1730145719158,17.34918243,176.51,176.45,17.34918243]
[1730145719862,23.01388243,176.53,176.47,17.34918243]
[1730145720256,17.34918243,176.56,176.5,17.34918243]
[1730145720453,5.6641,176.55,176.51,17.34918243]
[1730145720954,16.5303,176.58,176.53,17.34918243]
[1730145721144,16.5303,176.58,176.54,17.34918243]
[1730145721347,5.6628,176.59,176.54,17.34918243]
[1730145721649,23.01198243,176.59,176.53,17.34918243]
[1730145722155,17.34918243,176.56,176.5,17.34918243]
[1730145722353,17.34918243,176.57,176.51,17.34918243]
[1730145722554,70.0,176.59,176.51,17.34918243]
[1730145722750,17.34918243,176.57,176.51,17.34918243]
[1730145723138,5.6637,176.56,176.51,17.34918243]
[1730145723341,5.6637,176.56,176.53,17.34918243]
[1730145724146,5.6631,176.58,176.53,17.34918243]
[1730145727245,23.01228243,176.58,176.52,17.34918243]
[1730145727658,5.6631,176.58,176.53,17.34918243]
[1730145728556,5.6631,176.58,176.54,17.34918243]
[1730145728870,5.6631,176.58,176.55,17.34918243]
[1730145729565,5.6625,176.6,176.55,17.34918243]
[1730145729957,17.34918243,176.62,176.56,17.34918243]
[1730145730160,5.6618,176.62,176.58,17.34918243]
[1730145730368,16.5303,176.63,176.59,17.34918243]
[1730145730664,0.5963821,176.65,176.6,17.34918243]
[1730145730851,6.2572821,176.65,176.6,17.34918243]
[1730145731865,6.2572821,176.65,176.52,6.5482]
[1730145731866,6.2572821,176.65,176.63,17.34918243]
[1730145732072,0.5963821,176.65,176.64,17.34918243]
[1730145732582,0.5963821,176.65,176.62,17.34918243]
[1730145733275,0.5963821,176.65,176.64,17.34918243]
[1730145733572,0.5963821,176.65,176.63,17.34918243]
[1730145733775,0.5963821,176.65,176.64,17.34918243]
[1730145734266,0.5963821,176.65,176.57,6.188]
[1730145734444,0.5963821,176.65,176.64,17.34918243]
[1730145737669,0.5963821,176.65,176.62,17.34918243]
[1730145737854,0.5963821,176.65,176.63,17.34918243]
[1730145738256,0.5963821,176.65,176.64,17.34918243]
[1730145741576,0.5963821,176.65,176.63,17.34918243]
[1730145741870,6.2573821,176.65,176.6,17.34918243]
[1730145742059,6.2573821,176.65,176.61,17.34918243]
[1730145742263,0.5963821,176.65,176.61,17.34918243]
[1730145742563,0.5963821,176.65,176.63,17.34918243]
[1730145742760,6.2572821,176.65,176.62,17.34918243]
[1730145743364,0.5963821,176.65,176.62,17.34918243]
[1730145743690,0.5963821,176.65,176.64,17.34918243]
[1730145748256,0.5963821,176.65,176.58,17.44918243]
[1730145748257,0.5963821,176.65,176.63,17.34918243]
[1730145748572,6.2572821,176.65,176.6,17.34918243]
[1730145749151,23.60646453,176.65,176.59,17.34918243]
[1730145749360,17.34918243,176.62,176.57,17.34918243]
[1730145749588,17.34918243,176.61,176.55,17.34918243]
[1730145749772,17.34918243,176.59,176.54,17.34918243]
[1730145749955,17.34918243,176.59,176.53,17.34918243]
[1730145750159,17.34918243,176.58,176.52,17.34918243]
[1730145750774,17.34918243,176.57,176.52,17.34918243]
[1730145751454,17.34918243,176.56,176.48,6.3369]
[1730145751656,17.34918243,176.55,176.49,17.34918243]
[1730145752591,5.6635,176.57,176.44,6.3411]
[1730145752592,17.34918243,176.53,176.47,17.34918243]
[1730145752792,17.34918243,176.52,176.46,17.34918243]
[1730145752997,17.34918243,176.53,176.47,17.34918243]
[1730145753183,89.8221,176.57,176.48,17.34918243]
[1730145753184,17.34918243,176.54,176.48,17.34918243]
[1730145753493,5.6647,176.53,176.48,17.34918243]
[1730145753701,5.6647,176.53,176.49,17.34918243]
[1730145753889,5.6644,176.54,176.5,17.34918243]
[1730145754482,15.5452,176.58,176.51,17.34918243]
[1730145754483,23.01258243,176.57,176.51,17.34918243]
[1730145754987,17.34918243,176.56,176.5,17.34918243]
[1730145755395,17.34918243,176.55,176.49,17.34918243]
[1730145755568,23.01358243,176.55,176.49,17.34918243]
[1730145756472,17.34918243,176.52,176.46,17.34918243]
[1730145756676,17.34918243,176.51,176.45,17.34918243]
[1730145756983,17.34918243,176.5,176.45,17.34918243]
[1730145758270,17.34918243,176.48,176.42,17.34918243]
[1730145758482,23.01488243,176.5,176.44,17.34918243]
[1730145760681,17.34918243,176.53,176.47,17.34918243]
[1730145761297,17.34918243,176.51,176.45,17.34918243]
[1730145761673,17.34918243,176.49,176.43,17.34918243]
[1730145761866,17.34918243,176.48,176.42,17.34918243]
[1730145763078,5.6663,176.48,176.43,17.34918243]
[1730145764396,23.01548243,176.48,176.42,17.34918243]
[1730145765187,17.34918243,176.47,176.41,17.34918243]
[1730145765394,17.34918243,176.45,176.39,17.34918243]
[1730145765596,17.34918243,176.43,176.37,17.34918243]
[1730145765793,17.34918243,176.44,176.38,17.34918243]
[1730145766295,5.6678,176.44,176.39,17.34918243]
[1730145766477,5.6678,176.44,176.4,17.34918243]
[1730145766874,5.6678,176.44,176.39,17.34918243]
[1730145767093,23.01698243,176.44,176.38,17.34918243]
[1730145768503,5.6678,176.44,176.39,17.34918243]
[1730145770686,23.01698243,176.44,176.38,17.34918243]
[1730145771981,17.34918243,176.42,176.36,17.34918243]
[1730145772792,17.34918243,176.42,176.37,17.34918243]
[1730145773107,17.34918243,176.43,176.37,17.34918243]
[1730145773707,5.6682,176.42,176.37,17.34918243]
[1730145775407,23.01648243,176.45,176.39,17.34918243]
[1730145775593,17.34918243,176.44,176.38,17.34918243]
[1730145776406,5.6679,176.43,176.38,17.34918243]
[1730145777313,23.01708243,176.43,176.37,17.34918243]
[1730145777885,17.34918243,176.4,176.34,17.34918243]
[1730145778514,23.01808243,176.4,176.34,17.34918243]
[1730145779384,17.34918243,176.37,176.32,23.55618243]
[1730145779589,17.34918243,176.36,176.29,16.0047]
[1730145779793,17.34918243,176.36,176.3,17.34918243]
[1730145780715,17.34918243,176.38,176.32,17.34918243]
[1730145780900,39.61368243,176.4,176.34,17.34918243]
[1730145781226,17.34918243,176.35,176.26,5.90272089]
[1730145781517,17.34918243,176.3,176.24,33.86338243]
[1730145781698,17.34918243,176.3,176.24,17.34918243]
[1730145781906,17.34918243,176.28,176.22,17.34918243]
[1730145783913,23.02208243,176.28,176.22,17.34918243]
[1730145784235,23.02208243,176.28,176.21,17.34918243]
[1730145784236,17.34918243,176.27,176.21,17.34918243]
[1730145784735,17.34918243,176.27,176.2,17.34918243]
[1730145785033,15.0101,176.31,176.26,17.34918243]
[1730145785206,17.34918243,176.29,176.23,17.34918243]
[1730145785407,17.34918243,176.28,176.22,17.34918243]
[1730145786519,23.02178243,176.29,176.23,17.34918243]
[1730145786803,17.34918243,176.28,176.22,17.34918243]
[1730145788029,23.02238243,176.27,176.21,17.34918243]
[1730145790342,17.34918243,176.26,176.2,17.34918243]
[1730145790629,23.02278243,176.26,176.2,17.34918243]
[1730145792111,17.34918243,176.27,176.2,17.34918243]
[1730145793435,17.34918243,176.25,176.19,17.41686613]
[1730145794044,17.34918243,176.21,176.19,0.0676837]
[1730145794635,16.42688066,176.21,176.19,0.0676837]
[1730145795313,17.34918243,176.24,176.19,0.0676837]
[1730145795522,17.34918243,176.25,176.19,17.41686613]
[1730145795727,17.34918243,176.29,176.23,17.34918243]
[1730145796141,23.02168243,176.29,176.23,17.34918243]
[1730145796440,17.34918243,176.3,176.24,17.34918243]
[1730145796827,32.35928243,176.31,176.25,17.34918243]
[1730145797014,17.34918243,176.33,176.27,17.34918243]
[1730145798140,17.34918243,176.33,176.28,17.34918243]
[1730145798543,17.34918243,176.35,176.29,17.34918243]
[1730145798722,38.77228243,176.36,176.3,17.34918243]
[1730145799319,15.7529,176.36,176.31,17.34918243]
[1730145801843,22.113,176.41,176.35,17.34918243]
[1730145802134,21.6599,176.41,176.36,17.34918243]
[1730145802329,39.00908243,176.41,176.35,17.34918243]
[1730145802849,21.6599,176.41,176.36,17.34918243]
[1730145803518,17.34918243,176.38,176.32,17.34918243]
[1730145804519,23.01878243,176.38,176.32,17.34918243]
[1730145804724,17.34918243,176.36,176.3,17.34918243]
[1730145805041,17.34918243,176.36,176.31,17.34918243]
[1730145805227,17.34918243,176.37,176.31,17.34918243]
[1730145805747,23.01808243,176.4,176.34,17.34918243]
[1730145805922,20.0,176.39,176.34,17.34918243]
[1730145806625,25.6693,176.39,176.34,17.34918243]
[1730145807344,43.01848243,176.39,176.33,17.34918243]
[1730145808347,17.34918243,176.34,176.25,6.6404]
[1730145808561,17.34918243,176.33,176.28,17.34918243]
[1730145808743,23.02058243,176.33,176.28,17.34918243]
[1730145808923,5.6714,176.33,176.28,17.34918243]
[1730145811538,84.1755,176.37,176.29,17.34918243]
[1730145811539,17.34918243,176.35,176.29,17.34918243]
[1730145811736,5.6702,176.36,176.28,17.34918243]
[1730145812040,17.34918243,176.34,176.28,17.34918243]
[1730145812753,17.34918243,176.3,176.24,32.84158243]
[1730145812950,17.34918243,176.29,176.23,17.34918243]
[1730145813149,17.34918243,176.29,176.21,6.0505]
[1730145813359,17.34918243,176.28,176.22,17.34918243]
[1730145813728,17.34918243,176.29,176.22,17.34918243]
[1730145813951,17.34918243,176.29,176.23,17.34918243]
[1730145814955,5.6727,176.28,176.22,17.34918243]
[1730145815258,5.6727,176.28,176.23,17.34918243]
[1730145816354,5.6724,176.29,176.23,17.34918243]
[1730145817138,17.34918243,176.28,176.22,17.34918243]
[1730145817638,23.02158243,176.29,176.23,17.34918243]
[1730145818150,23.02158243,176.29,176.19,15.8720837]
[1730145818151,17.34918243,176.27,176.19,0.0676837]
[1730145818358,17.34918243,176.26,176.2,17.34918243]
[1730145818572,23.02278243,176.26,176.2,17.34918243]
[1730145819356,23.02278243,176.26,176.19,17.41686613]
[1730145819729,17.34918243,176.24,176.19,0.0676837]
[1730145821232,17.34918243,176.25,176.19,17.41686613]
[1730145821431,17.34918243,176.25,176.19,0.0676837]
[1730145821839,23.02278243,176.26,176.19,17.41686613]
[1730145822040,17.34918243,176.28,176.21,17.34918243]
[1730145822246,23.02188243,176.28,176.21,17.34918243]
[1730145822457,17.34918243,176.28,176.21,17.34918243]
[1730145823156,17.34918243,176.27,176.21,17.34918243]
[1730145824339,17.34918243,176.26,176.2,17.34918243]
[1730145824655,17.34918243,176.27,176.21,17.34918243]
[1730145826552,17.34918243,176.28,176.22,17.34918243]
[1730145827036,17.34918243,176.28,176.19,0.0676837]
[1730145827037,17.34918243,176.29,176.23,17.34918243]
[1730145827458,17.34918243,176.3,176.23,17.34918243]
[1730145827943,23.02068243,176.32,176.25,17.34918243]
[1730145828657,17.34918243,176.31,176.25,17.34918243]
[1730145828860,17.34918243,176.3,176.24,17.34918243]
[1730145830736,23.02158243,176.3,176.24,17.34918243]
[1730145830942,5.6724,176.3,176.24,17.34918243]
[1730145831859,5.6724,176.3,176.25,17.34918243]
[1730145832260,23.02158243,176.3,176.24,17.34918243]
[1730145832842,23.02158243,176.3,176.21,23.776884]
[1730145832843,5.6724,176.3,176.25,17.34918243]
[1730145837354,17.34918243,176.32,176.21,23.776884]
[1730145837555,17.34918243,176.35,176.29,17.34918243]
[1730145838171,17.34918243,176.34,176.28,17.34918243]
[1730145839072,5.6711,176.33,176.28,17.34918243]
[1730145840171,5.6711,176.33,176.27,17.34918243]
[1730145841671,17.34918243,176.32,176.26,17.34918243]
[1730145842775,5.6711,176.33,176.21,23.776884]
[1730145842776,23.01968243,176.35,176.29,17.34918243]
[1730145843779,17.34918243,176.34,176.28,17.34918243]
[1730145844967,23.02018243,176.34,176.28,17.34918243]
[1730145845491,17.34918243,176.32,176.26,17.34918243]
[1730145845665,17.34918243,176.33,176.26,17.34918243]
[1730145846360,17.34918243,176.33,176.27,17.34918243]
[1730145846565,17.34918243,176.36,176.3,17.34918243]
[1730145846772,23.01938243,176.36,176.3,17.34918243]
[1730145847068,23.01938243,176.36,176.23,43.976884]
[1730145847069,23.01938243,176.36,176.29,17.34918243]
[1730145848082,33.28238243,176.37,176.31,17.34918243]
[1730145848281,15.9332,176.37,176.32,17.34918243]
[1730145848489,15.9332,176.37,176.27,22.2115]
[1730145848490,33.28238243,176.37,176.31,17.34918243]
[1730145848868,17.34918243,176.35,176.29,17.34918243]
[1730145849879,23.01988243,176.35,176.3,0.16703592]
[1730145850079,17.34918243,176.31,176.23,21.7953]
[1730145850294,17.34918243,176.3,176.24,17.34918243]
[1730145850475,75.6707,176.35,176.23,17.34918243]
[1730145850476,17.34918243,176.29,176.23,17.34918243]
[1730145851687,15.5829,176.27,176.22,17.34918243]
[1730145851886,15.5829,176.27,176.2,17.34918243]
[1730145851887,17.34918243,176.26,176.2,17.34918243]
[1730145852984,5.6734,176.26,176.21,17.34918243]
[1730145853178,23.02218243,176.28,176.21,17.34918243]
[1730145853389,17.34918243,176.29,176.23,17.34918243]
[1730145854596,23.02188243,176.29,176.23,17.34918243]
[1730145854790,23.02138243,176.3,176.24,17.34918243]
[1730145854977,17.34918243,176.31,176.25,17.34918243]
[1730145855176,38.32208243,176.32,176.26,17.34918243]
[1730145856193,17.34918243,176.31,176.25,17.34918243]
[1730145856573,17.34918243,176.3,176.24,17.34918243]
[1730145856899,17.34918243,176.29,176.23,17.34918243]
[1730145857100,17.34918243,176.3,176.24,17.34918243]
[1730145857402,23.02118243,176.31,176.25,17.34918243]
[1730145857991,17.34918243,176.3,176.24,17.34918243]
[1730145858605,23.02148243,176.3,176.24,17.34918243]
[1730145860394,23.02108243,176.31,176.25,17.34918243]
[1730145860584,5.6719,176.31,176.26,17.34918243]
[1730145860988,5.6711,176.33,176.28,17.34918243]
[1730145862275,23.02028243,176.33,176.27,17.34918243]
[1730145862803,23.02028243,176.33,176.26,17.34918243]
[1730145863098,17.34918243,176.28,176.21,22.5686]
[1730145863306,17.34918243,176.28,176.19,0.0676837]
[1730145863307,17.34918243,176.27,176.19,0.0676837]
[1730145863601,23.02288243,176.25,176.19,17.41686613]
[1730145865016,23.02288243,176.25,176.19,0.0676837]
[1730145865198,17.34918243,176.24,176.19,0.0676837]
[1730145865405,23.02288243,176.25,176.19,17.41686613]
[1730145866013,17.34918243,176.24,176.19,0.0676837]
[1730145868121,17.34918243,176.23,176.19,0.0676837]
[1730145871810,17.34918243,176.25,176.19,17.41686613]
[1730145872012,17.34918243,176.26,176.2,17.34918243]
[1730145872213,17.34918243,176.24,176.19,0.0676837]
[1730145872417,17.34918243,176.25,176.19,0.0676837]
[1730145872629,17.34918243,176.25,176.19,17.41686613]
[1730145873335,17.34918243,176.21,176.19,0.0676837]
[1730145873532,17.34918243,176.2,176.19,0.0676837]
[1730145875734,23.02448243,176.2,176.19,0.0676837]
[1730145876913,116.80136643,176.2,176.19,0.0676837]
[1730145879213,136.80136643,176.2,176.19,0.0676837]
[1730145882936,70.0,176.16,176.06,17.34918243]
[1730145883152,17.34918243,176.12,176.06,17.34918243]
[1730145884018,80.900584,176.2,176.09,17.34918243]
[1730145884019,17.34918243,176.15,176.09,17.34918243]
[1730145884323,17.34918243,176.16,176.1,17.34918243]
[1730145884829,17.34918243,176.18,176.12,17.34918243]
[1730145885420,17.34918243,176.17,176.11,17.34918243]
[1730145886527,17.34918243,176.26,176.16,17.34918243]
[1730145886722,17.34918243,176.26,176.2,17.34918243]
[1730145887042,17.34918243,176.26,176.19,17.34918243]
[1730145887233,17.34918243,176.24,176.18,17.34918243]
[1730145887946,17.34918243,176.25,176.18,17.34918243]
[1730145888238,17.34918243,176.25,176.19,17.34918243]
[1730145889232,17.34918243,176.25,176.18,17.34918243]
[1730145889427,17.34918243,176.27,176.2,17.34918243]
[1730145889828,17.34918243,176.26,176.19,17.34918243]
[1730145890048,17.34918243,176.24,176.17,17.34918243]
[1730145890223,17.34918243,176.25,176.18,17.34918243]
[1730145890424,17.34918243,176.25,176.19,17.34918243]
[1730145891224,23.02248243,176.27,176.2,17.34918243]
[1730145893125,17.34918243,176.26,176.19,17.34918243]
[1730145894253,17.34918243,176.25,176.19,17.34918243]
[1730145894751,5.6734,176.26,176.19,17.34918243]
[1730145894752,23.02258243,176.26,176.19,17.34918243]
[1730145895125,5.6734,176.26,176.2,17.34918243]
[1730145895952,17.34918243,176.25,176.19,17.34918243]
[1730145896149,17.34918243,176.24,176.17,17.34918243]
[1730145896648,23.02338243,176.24,176.18,17.34918243]
[1730145896956,5.6742,176.24,176.18,17.34918243]
[1730145897250,23.02338243,176.24,176.18,17.34918243]
[1730145898227,23.02278243,176.26,176.19,17.34918243]
[1730145898426,17.34918243,176.25,176.19,17.34918243]
[1730145899537,5.674,176.24,176.19,17.34918243]
[1730145900658,17.34918243,176.27,176.2,17.34918243]
[1730145901833,17.34918243,176.26,176.2,17.34918243]
[1730145902556,23.02168243,176.29,176.23,17.34918243]
[1730145903071,91.1453,176.38,176.28,17.34918243]
[1730145903362,17.34918243,176.34,176.28,17.34918243]
[1730145903658,70.0,176.34,176.21,6.3568]
[1730145903861,5.6718,176.31,176.21,6.3568]
[1730145904251,17.34918243,176.28,176.22,17.34918243]
[1730145905251,17.34918243,176.25,176.19,17.34918243]
[1730145906142,23.02258243,176.26,176.2,17.34918243]
[1730145907059,17.34918243,176.22,176.15,15.198]
[1730145907260,17.34918243,176.21,176.15,17.34918243]
[1730145907646,17.34918243,176.21,176.15,37.34918243]
[1730145907964,17.34918243,176.22,176.15,17.34918243]
[1730145908536,23.02378243,176.23,176.16,17.34918243]
[1730145908736,17.34918243,176.23,176.17,17.34918243]
[1730145908957,17.34918243,176.28,176.22,17.34918243]
[1730145909158,32.36308243,176.29,176.23,17.34918243]
[1730145909366,17.34918243,176.3,176.24,17.34918243]
[1730145909566,23.02128243,176.3,176.24,17.34918243]
[1730145909763,17.34918243,176.32,176.26,17.34918243]
[1730145909954,38.23248243,176.33,176.27,17.34918243]
[1730145910151,17.34918243,176.32,176.26,17.34918243]
[1730145910553,23.02088243,176.32,176.26,17.34918243]
[1730145911444,17.34918243,176.31,176.25,17.34918243]
[1730145911664,17.34918243,176.29,176.23,17.34918243]
[1730145911969,17.34918243,176.26,176.2,17.34918243]
[1730145912150,17.34918243,176.28,176.22,17.34918243]
[1730145912479,5.6717,176.32,176.19,0.1]
[1730145912841,5.6717,176.32,176.18,0.2]
[1730145913152,17.34918243,176.3,176.24,17.34918243]
[1730145913352,17.34918243,176.31,176.25,17.34918243]
[1730145913568,5.6719,176.31,176.26,17.34918243]
[1730145914272,23.02108243,176.31,176.25,17.34918243]
[1730145915676,17.34918243,176.3,176.24,17.34918243]
[1730145916252,17.34918243,176.29,176.23,17.34918243]
[1730145916574,17.34918243,176.28,176.22,17.34918243]
[1730145916778,5.6719,176.31,176.21,17.34918243]
[1730145916779,17.34918243,176.27,176.21,17.34918243]
[1730145917971,17.34918243,176.27,176.22,20.0]
[1730145919463,17.34918243,176.27,176.21,17.34918243]
[1730145919464,5.6721,176.3,176.24,17.34918243]
[1730145920057,17.34918243,176.32,176.26,17.34918243]
[1730145920269,17.34918243,176.31,176.25,17.34918243]
[1730145921975,5.6718,176.31,176.26,17.34918243]
[1730145922674,23.02098243,176.31,176.25,17.34918243]
[1730145922977,17.34918243,176.3,176.24,17.34918243]
[1730145923558,17.34918243,176.26,176.2,17.34918243]
[1730145923761,17.34918243,176.25,176.18,23.54818243]
[1730145923975,23.02298243,176.25,176.18,23.54818243]